[Event "Championnat d'Europe de Blitz"]
[Date "2024.12.09"]
[White "Livaic, Leon"]
[Black "Magold, Filip"]
[WhiteElo "2560"]
[BlackElo "2428"]
[Round "9.16"]
[Result "1-0"]
[TimeControl "180+2"]

1. d4 {[%emt 00:00:02] [%clk 00:03:02]} d5 {[%emt 00:00:01] [%clk 00:03:03]} 2.
c4 {[%clk 00:03:03]} c6 {[%clk 00:03:04]} 3. cxd5 {[%emt 00:00:02] [%clk
00:03:03]} cxd5 {[%emt 00:00:01] [%clk 00:03:05]} 4. Bf4 {[%clk 00:03:04]} Nf6
{[%emt 00:00:02] [%clk 00:03:06]} 5. Nc3 {[%emt 00:00:01] [%clk 00:03:05]} Nc6
{[%emt 00:00:02] [%clk 00:03:06]} 6. e3 {[%emt 00:00:01] [%clk 00:03:06]} a6
{[%clk 00:03:07]} 7. Be2 {[%emt 00:00:04] [%clk 00:03:04]} Bf5 {[%emt 00:00:03]
[%clk 00:03:06]} 8. Nf3 {[%clk 00:03:04]} e6 {[%emt 00:00:02] [%clk 00:03:06]}
9. Qb3 {[%emt 00:00:02] [%clk 00:03:04]} Bb4 {[%emt 00:00:02] [%clk 00:03:07]}
10. O-O {[%emt 00:00:06] [%clk 00:03:00]} O-O {[%emt 00:00:41] [%clk 00:02:28]}
11. Ne5 {[%emt 00:00:01] [%clk 00:03:01]} Nxe5 {[%emt 00:00:25] [%clk 00:02:05]}
12. Qxb4 {[%emt 00:00:05] [%clk 00:02:58]} Ng6 {[%emt 00:00:16] [%clk 00:01:51]}
13. Bg3 {[%emt 00:00:09] [%clk 00:02:50]} Qe7 {[%emt 00:00:20] [%clk 00:01:33]}
14. Bd6 {[%emt 00:00:06] [%clk 00:02:46]} Qd7 {[%emt 00:00:01] [%clk 00:01:34]}
15. Bxf8 {[%emt 00:00:03] [%clk 00:02:45]} Rxf8 {[%emt 00:00:04] [%clk
00:01:33]} 16. Rac1 {[%emt 00:00:18] [%clk 00:02:28]} Ne7 {[%emt 00:00:01] [%clk
00:01:34]} 17. Na4 {[%emt 00:00:13] [%clk 00:02:17]} b5 {[%emt 00:00:01] [%clk
00:01:35]} 18. Nc5 {[%emt 00:00:04] [%clk 00:02:15]} Qd6 {[%emt 00:00:09] [%clk
00:01:28]} 19. Nd3 {[%emt 00:00:24] [%clk 00:01:54]} Qd7 {[%emt 00:00:16] [%clk
00:01:15]} 20. Ne5 {[%emt 00:00:02] [%clk 00:01:54]} Qa7 {[%emt 00:00:07] [%clk
00:01:10]} 21. Qc5 {[%emt 00:00:13] [%clk 00:01:42]} Qb7 {[%emt 00:00:16] [%clk
00:00:56]} 22. Qc7 {[%emt 00:00:03] [%clk 00:01:41]} Rb8 {[%emt 00:00:01] [%clk
00:00:57]} 23. Qxb7 {[%emt 00:00:08] [%clk 00:01:35]} Rxb7 {[%clk 00:00:58]} 24.
f3 {[%emt 00:00:14] [%clk 00:01:23]} g5 {[%clk 00:00:59]} 25. Rc5 {[%emt
00:00:03] [%clk 00:01:22]} Ne8 {[%emt 00:00:05] [%clk 00:00:56]} 26. Rfc1 {[%emt
00:00:03] [%clk 00:01:21]} h5 {[%emt 00:00:31] [%clk 00:00:27]} 27. Nc6 {[%emt
00:00:12] [%clk 00:01:11]} Nd6 {[%emt 00:00:23] [%clk 00:00:07]} 28. Nxe7+
{[%emt 00:00:04] [%clk 00:01:09]} Rxe7 {[%emt 00:00:01] [%clk 00:00:07]} 29. Rc7
{[%emt 00:00:04] [%clk 00:01:07]} Re8 {[%clk 00:00:09]} 30. R1c6 {[%emt
00:00:04] [%clk 00:01:05]} Rd8 {[%clk 00:00:10]} 31. Rxa6 {[%emt 00:00:15] [%clk
00:00:52]} Nc4 {[%emt 00:00:03] [%clk 00:00:09]} 32. Bxc4 {[%emt 00:00:05] [%clk
00:00:49]} bxc4 {[%emt 00:00:01] [%clk 00:00:10]} 33. Rb6 {[%emt 00:00:06] [%clk
00:00:44]} Ra8 {[%emt 00:00:03] [%clk 00:00:09]} 34. a3 {[%emt 00:00:01] [%clk
00:00:46]} Bg6 {[%emt 00:00:02] [%clk 00:00:09]} 35. Kf2 {[%emt 00:00:02] [%clk
00:00:46]} h4 {[%emt 00:00:01] [%clk 00:00:09]} 36. h3 {[%emt 00:00:02] [%clk
00:00:47]} Kg7 {[%emt 00:00:04] [%clk 00:00:08]} 37. Ke1 {[%emt 00:00:06] [%clk
00:00:42]} Kf6 {[%emt 00:00:01] [%clk 00:00:08]} 38. Rbb7 {[%emt 00:00:03] [%clk
00:00:41]} e5 {[%emt 00:00:07] [%clk 00:00:04]} 39. Rb6+ {[%emt 00:00:06] [%clk
00:00:38]} Kf5 {[%emt 00:00:01] [%clk 00:00:05]} 40. Rd7 {[%emt 00:00:09] [%clk
00:00:31]} Ra5 {[%emt 00:00:01] [%clk 00:00:06]} 41. Rxd5 {[%emt 00:00:09] [%clk
00:00:23]} Rxd5 {[%emt 00:00:04] [%clk 00:00:04]} 42. e4+ {[%clk 00:00:25]} Kf4
{[%emt 00:00:01] [%clk 00:00:05]} 43. exd5 {[%clk 00:00:26]} exd4 {[%emt
00:00:01] [%clk 00:00:06]} 44. d6 {[%emt 00:00:02] [%clk 00:00:26]} Bf5 {[%emt
00:00:02] [%clk 00:00:05]} 45. Rb7 {[%emt 00:00:10] [%clk 00:00:19]} Ke3 {[%emt
00:00:04] [%clk 00:00:03]} 46. Re7+ {[%emt 00:00:02] [%clk 00:00:19]} Kd3 {[%emt
00:00:01] [%clk 00:00:04]} 47. d7 {[%emt 00:00:04] [%clk 00:00:17]} Bxd7 {[%emt
00:00:01] [%clk 00:00:05]} 48. Rxd7 {[%clk 00:00:18]} f5 {[%emt 00:00:01] [%clk
00:00:05]} 49. a4 {[%emt 00:00:02] [%clk 00:00:19]} Ke3 {[%emt 00:00:04] [%clk
00:00:04]} 50. a5 {[%emt 00:00:01] [%clk 00:00:19]} d3 {[%emt 00:00:01] [%clk
00:00:05]} 51. a6 {[%emt 00:00:01] [%clk 00:00:21]} 1-0

[Site "Europe Echecs"]

[Event "Championnat d'Europe de Blitz"]
[Date "2024.12.09"]
[White "Saric, Ante"]
[Black "Trushko, Andrii"]
[WhiteElo "2482"]
[BlackElo "2143"]
[Round "9.17"]
[Result "1/2-1/2"]
[TimeControl "180+2"]

1. Nf3 {[%clk 00:03:03]} Nf6 {[%emt 00:00:01] [%clk 00:03:04]} 2. c4 {[%emt
00:00:01] [%clk 00:03:05]} e6 {[%clk 00:03:05]} 3. g3 {[%emt 00:00:03] [%clk
00:03:04]} d5 {[%emt 00:00:01] [%clk 00:03:06]} 4. Bg2 {[%emt 00:00:01] [%clk
00:03:05]} Be7 {[%clk 00:03:07]} 5. O-O {[%emt 00:00:02] [%clk 00:03:05]} O-O
{[%clk 00:03:08]} 6. b3 {[%emt 00:00:01] [%clk 00:03:06]} c6 {[%emt 00:00:03]
[%clk 00:03:06]} 7. d4 {[%emt 00:00:11] [%clk 00:02:58]} b6 {[%emt 00:00:09]
[%clk 00:02:59]} 8. Qc2 {[%emt 00:00:05] [%clk 00:02:55]} Bb7 {[%emt 00:00:01]
[%clk 00:02:59]} 9. Nc3 {[%emt 00:00:06] [%clk 00:02:52]} c5 {[%emt 00:00:13]
[%clk 00:02:47]} 10. cxd5 {[%emt 00:00:07] [%clk 00:02:47]} Nxd5 {[%emt
00:00:11] [%clk 00:02:39]} 11. Nxd5 {[%emt 00:00:02] [%clk 00:02:47]} Bxd5
{[%emt 00:00:04] [%clk 00:02:37]} 12. e4 {[%emt 00:00:04] [%clk 00:02:44]} Bb7
{[%emt 00:00:02] [%clk 00:02:37]} 13. Bb2 {[%emt 00:00:12] [%clk 00:02:34]} Nc6
{[%emt 00:00:06] [%clk 00:02:33]} 14. Rfd1 {[%emt 00:00:27] [%clk 00:02:10]}
cxd4 {[%emt 00:00:02] [%clk 00:02:33]} 15. Nxd4 {[%emt 00:00:01] [%clk
00:02:11]} Nxd4 {[%emt 00:00:04] [%clk 00:02:31]} 16. Rxd4 {[%emt 00:00:02]
[%clk 00:02:11]} Qe8 {[%emt 00:00:05] [%clk 00:02:28]} 17. Rad1 {[%emt 00:00:13]
[%clk 00:02:00]} Rc8 {[%emt 00:00:06] [%clk 00:02:23]} 18. Qe2 {[%emt 00:00:02]
[%clk 00:02:00]} Bc6 {[%emt 00:00:07] [%clk 00:02:18]} 19. a3 {[%emt 00:00:34]
[%clk 00:01:29]} a5 {[%emt 00:00:13] [%clk 00:02:07]} 20. R4d2 {[%emt 00:00:04]
[%clk 00:01:27]} Bf6 {[%emt 00:00:26] [%clk 00:01:43]} 21. Bxf6 {[%emt 00:00:05]
[%clk 00:01:24]} gxf6 {[%emt 00:00:01] [%clk 00:01:44]} 22. Rd6 {[%emt 00:00:16]
[%clk 00:01:10]} Qe7 {[%emt 00:00:06] [%clk 00:01:40]} 23. e5 {[%emt 00:00:26]
[%clk 00:00:46]} Bxg2 {[%emt 00:00:06] [%clk 00:01:36]} 24. Kxg2 {[%clk
00:00:47]} Qb7+ {[%emt 00:00:18] [%clk 00:01:19]} 25. Kg1 {[%emt 00:00:10] [%clk
00:00:40]} f5 {[%emt 00:00:01] [%clk 00:01:20]} 26. Qe3 {[%emt 00:00:03] [%clk
00:00:39]} b5 {[%emt 00:00:10] [%clk 00:01:12]} 27. Qg5+ {[%emt 00:00:04] [%clk
00:00:37]} Kh8 {[%emt 00:00:01] [%clk 00:01:13]} 28. Qf6+ {[%emt 00:00:09] [%clk
00:00:30]} Kg8 {[%clk 00:01:14]} 29. h4 {[%emt 00:00:02] [%clk 00:00:30]} Qf3
{[%emt 00:00:02] [%clk 00:01:15]} 30. R6d3 {[%emt 00:00:09] [%clk 00:00:23]} Qg4
{[%emt 00:00:01] [%clk 00:01:16]} 31. Kg2 {[%emt 00:00:08] [%clk 00:00:18]} Qg7
{[%emt 00:00:33] [%clk 00:00:44]} 32. Rd7 {[%emt 00:00:09] [%clk 00:00:11]} Qxf6
{[%emt 00:00:06] [%clk 00:00:40]} 33. exf6 {[%emt 00:00:01] [%clk 00:00:12]} Rc3
{[%clk 00:00:41]} 34. Rd8 {[%clk 00:00:13]} Rc8 {[%emt 00:00:03] [%clk
00:00:39]} 35. Rxf8+ {[%emt 00:00:02] [%clk 00:00:13]} Rxf8 {[%emt 00:00:06]
[%clk 00:00:36]} 36. Rd7 {[%clk 00:00:14]} b4 {[%emt 00:00:05] [%clk 00:00:33]}
37. axb4 {[%emt 00:00:03] [%clk 00:00:12]} axb4 {[%clk 00:00:34]} 38. Rb7 {[%clk
00:00:13]} h5 {[%emt 00:00:02] [%clk 00:00:34]} 39. Kf3 {[%emt 00:00:02] [%clk
00:00:14]} Kh7 {[%emt 00:00:02] [%clk 00:00:34]} 40. Rxb4 {[%emt 00:00:04] [%clk
00:00:12]} Kg6 {[%emt 00:00:01] [%clk 00:00:35]} 41. Rb7 {[%emt 00:00:01] [%clk
00:00:13]} Rd8 {[%emt 00:00:04] [%clk 00:00:33]} 42. b4 {[%emt 00:00:01] [%clk
00:00:14]} Kxf6 {[%emt 00:00:02] [%clk 00:00:33]} 43. b5 {[%emt 00:00:01] [%clk
00:00:15]} Rd3+ {[%clk 00:00:34]} 44. Kg2 {[%emt 00:00:02] [%clk 00:00:15]} Rb3
{[%emt 00:00:02] [%clk 00:00:34]} 45. Rb8 {[%emt 00:00:01] [%clk 00:00:16]} f4
{[%emt 00:00:08] [%clk 00:00:28]} 46. gxf4 {[%emt 00:00:06] [%clk 00:00:12]} Kf5
{[%clk 00:00:29]} 47. Rh8 {[%emt 00:00:04] [%clk 00:00:10]} Kg4 {[%emt 00:00:02]
[%clk 00:00:29]} 48. Rf8 {[%emt 00:00:04] [%clk 00:00:08]} f5 {[%emt 00:00:01]
[%clk 00:00:29]} 49. Rf6 {[%emt 00:00:04] [%clk 00:00:07]} Rxb5 {[%emt 00:00:03]
[%clk 00:00:28]} 50. Rxe6 {[%emt 00:00:03] [%clk 00:00:06]} Rb4 {[%emt 00:00:02]
[%clk 00:00:28]} 51. Rg6+ {[%emt 00:00:03] [%clk 00:00:05]} Kxh4 {[%emt
00:00:02] [%clk 00:00:27]} 52. Kf3 {[%emt 00:00:04] [%clk 00:00:03]} Rb3+ {[%emt
00:00:17] [%clk 00:00:13]} 53. Kg2 {[%clk 00:00:05]} Rb4 {[%emt 00:00:02] [%clk
00:00:13]} 54. Kf3 {[%clk 00:00:07]} Kh3 {[%emt 00:00:05] [%clk 00:00:10]} 55.
Rg5 {[%clk 00:00:08]} h4 {[%emt 00:00:04] [%clk 00:00:09]} 56. Rxf5 {[%emt
00:00:01] [%clk 00:00:09]} Rb3+ {[%clk 00:00:09]} 57. Ke2 {[%clk 00:00:11]} Kg4
{[%emt 00:00:01] [%clk 00:00:10]} 58. Rg5+ {[%clk 00:00:11]} Kxf4 {[%emt
00:00:01] [%clk 00:00:11]} 59. Rg8 {[%clk 00:00:13]} Rb2+ {[%emt 00:00:05] [%clk
00:00:08]} 60. Kf1 {[%clk 00:00:14]} h3 {[%clk 00:00:09]} 61. Rf8+ {[%emt
00:00:01] [%clk 00:00:15]} Kg4 {[%emt 00:00:01] [%clk 00:00:11]} 62. Rg8+ {[%clk
00:00:16]} Kf4 {[%clk 00:00:12]} 63. Rf8+ {[%emt 00:00:01] [%clk 00:00:17]} Kg4
{[%emt 00:00:01] [%clk 00:00:13]} 64. Rg8+ {[%clk 00:00:17]} 1/2-1/2

[Site "Europe Echecs"]

[Event "Championnat d'Europe de Blitz"]
[Date "2024.12.09"]
[White "Horvath, Dominik"]
[Black "Subelj, Jan"]
[WhiteElo "2542"]
[BlackElo "2526"]
[Round "9.18"]
[Result "1-0"]
[TimeControl "180+2"]

1. d4 {[%emt 00:00:01] [%clk 00:03:03]} Nf6 {[%emt 00:00:01] [%clk 00:03:03]} 2.
Bf4 {[%emt 00:00:01] [%clk 00:03:03]} c6 {[%emt 00:00:02] [%clk 00:03:04]} 3. c4
{[%emt 00:00:12] [%clk 00:02:52]} Qb6 {[%emt 00:00:02] [%clk 00:03:04]} 4. Nf3
{[%emt 00:00:18] [%clk 00:02:36]} Qxb2 {[%emt 00:00:04] [%clk 00:03:03]} 5. Nbd2
{[%clk 00:02:37]} Qb6 {[%emt 00:00:02] [%clk 00:03:04]} 6. g4 {[%emt 00:00:03]
[%clk 00:02:36]} d6 {[%emt 00:00:06] [%clk 00:03:00]} 7. g5 {[%emt 00:00:02]
[%clk 00:02:36]} Nfd7 {[%emt 00:00:02] [%clk 00:02:59]} 8. Rb1 {[%emt 00:00:05]
[%clk 00:02:34]} Qa5 {[%emt 00:00:03] [%clk 00:02:59]} 9. Bg2 {[%emt 00:00:07]
[%clk 00:02:28]} e5 {[%emt 00:00:08] [%clk 00:02:52]} 10. Be3 {[%clk 00:02:29]}
e4 {[%emt 00:00:06] [%clk 00:02:49]} 11. Nh4 {[%clk 00:02:30]} d5 {[%emt
00:00:03] [%clk 00:02:48]} 12. O-O {[%emt 00:00:01] [%clk 00:02:30]} Qd8 {[%emt
00:00:23] [%clk 00:02:28]} 13. f3 {[%emt 00:00:04] [%clk 00:02:28]} Be7 {[%emt
00:00:04] [%clk 00:02:26]} 14. fxe4 {[%emt 00:00:27] [%clk 00:02:02]} Bxg5
{[%emt 00:00:02] [%clk 00:02:27]} 15. Bxg5 {[%emt 00:00:08] [%clk 00:01:56]}
Qxg5 {[%emt 00:00:02] [%clk 00:02:27]} 16. Nf5 {[%clk 00:01:58]} O-O {[%emt
00:00:10] [%clk 00:02:20]} 17. Rb3 {[%clk 00:01:59]} g6 {[%emt 00:00:07] [%clk
00:02:15]} 18. Rg3 {[%emt 00:00:01] [%clk 00:01:59]} Qd8 {[%emt 00:00:02] [%clk
00:02:15]} 19. e5 {[%emt 00:00:26] [%clk 00:01:35]} Nb6 {[%emt 00:00:08] [%clk
00:02:09]} 20. Nd6 {[%emt 00:00:09] [%clk 00:01:29]} Nxc4 {[%emt 00:00:08] [%clk
00:02:04]} 21. N2xc4 {[%emt 00:00:01] [%clk 00:01:30]} dxc4 {[%clk 00:02:05]}
22. Qd2 {[%clk 00:01:31]} f5 {[%emt 00:00:51] [%clk 00:01:16]} 23. Qh6 {[%emt
00:00:06] [%clk 00:01:26]} Qd7 {[%emt 00:00:07] [%clk 00:01:10]} 24. e4 {[%emt
00:00:11] [%clk 00:01:19]} Qg7 {[%emt 00:00:09] [%clk 00:01:03]} 25. Qxg7+
{[%emt 00:00:02] [%clk 00:01:19]} Kxg7 {[%emt 00:00:01] [%clk 00:01:04]} 26.
exf5 {[%clk 00:01:21]} c3 {[%emt 00:00:08] [%clk 00:00:57]} 27. f6+ {[%clk
00:01:21]} Kg8 {[%emt 00:00:01] [%clk 00:00:59]} 28. Rxc3 {[%emt 00:00:04] [%clk
00:01:20]} Be6 {[%emt 00:00:05] [%clk 00:00:55]} 29. Nxb7 {[%emt 00:00:03] [%clk
00:01:18]} Bxa2 {[%emt 00:00:07] [%clk 00:00:51]} 30. Na5 {[%emt 00:00:14] [%clk
00:01:07]} Rd8 {[%emt 00:00:19] [%clk 00:00:33]} 31. Rd1 {[%emt 00:00:30] [%clk
00:00:39]} a6 {[%emt 00:00:19] [%clk 00:00:16]} 32. Nxc6 {[%emt 00:00:02] [%clk
00:00:39]} Nxc6 {[%emt 00:00:02] [%clk 00:00:17]} 33. Rxc6 {[%clk 00:00:40]}
Rac8 {[%emt 00:00:04] [%clk 00:00:15]} 34. Rxc8 {[%emt 00:00:02] [%clk
00:00:40]} Rxc8 {[%emt 00:00:02] [%clk 00:00:16]} 35. d5 {[%clk 00:00:41]} Kf7
{[%emt 00:00:05] [%clk 00:00:13]} 36. Rf1 {[%clk 00:00:43]} Rd8 {[%emt 00:00:10]
[%clk 00:00:06]} 37. e6+ {[%clk 00:00:44]} Ke8 {[%emt 00:00:01]} 38. e7 {[%emt
00:00:06] [%clk 00:00:39]} Rb8 {[%clk 00:00:09]} 39. d6 {[%emt 00:00:01] [%clk
00:00:39]} Be6 {[%clk 00:00:09]} 40. Bc6+ {[%emt 00:00:02] [%clk 00:00:39]} Kf7
{[%emt 00:00:03] [%clk 00:00:09]} 41. d7 {[%emt 00:00:01] [%clk 00:00:41]} 1-0

[Site "Europe Echecs"]

[Event "Championnat d'Europe de Blitz"]
[Date "2024.12.09"]
[White "Kuzubov, Yuriy"]
[Black "Ghimpu, Samuel-Timotei"]
[WhiteElo "2595"]
[BlackElo "2475"]
[Round "9.19"]
[Result "1-0"]
[TimeControl "180+2"]

1. c4 {[%emt 00:00:03] [%clk 00:03:02]} e6 {[%emt 00:00:02] [%clk 00:03:02]} 2.
Nc3 {[%emt 00:00:01] [%clk 00:03:02]} d5 {[%emt 00:00:02] [%clk 00:03:03]} 3. d4
{[%emt 00:00:03] [%clk 00:03:01]} Nf6 {[%emt 00:00:01] [%clk 00:03:03]} 4. cxd5
{[%emt 00:00:02] [%clk 00:03:01]} Nxd5 {[%emt 00:00:02] [%clk 00:03:04]} 5. e4
{[%emt 00:00:06] [%clk 00:02:57]} Nxc3 {[%emt 00:00:03] [%clk 00:03:03]} 6. bxc3
{[%emt 00:00:02] [%clk 00:02:57]} c5 {[%clk 00:03:04]} 7. Rb1 {[%emt 00:00:08]
[%clk 00:02:52]} Be7 {[%emt 00:00:02] [%clk 00:03:04]} 8. Nf3 {[%emt 00:00:02]
[%clk 00:02:52]} O-O {[%emt 00:00:02] [%clk 00:03:04]} 9. Bd3 {[%emt 00:00:03]
[%clk 00:02:51]} cxd4 {[%emt 00:00:30] [%clk 00:02:35]} 10. cxd4 {[%emt
00:00:02] [%clk 00:02:52]} b6 {[%emt 00:00:09] [%clk 00:02:28]} 11. O-O {[%emt
00:00:10] [%clk 00:02:44]} Bb7 {[%emt 00:00:08] [%clk 00:02:22]} 12. Qe2 {[%emt
00:00:12] [%clk 00:02:34]} Nc6 {[%emt 00:00:08] [%clk 00:02:16]} 13. Bb2 {[%emt
00:01:11] [%clk 00:01:25]} Nb4 {[%emt 00:00:07] [%clk 00:02:10]} 14. Bc4 {[%emt
00:00:04] [%clk 00:01:24]} Rc8 {[%emt 00:00:05] [%clk 00:02:08]} 15. a3 {[%emt
00:00:09] [%clk 00:01:16]} Nc6 {[%emt 00:00:40] [%clk 00:01:30]} 16. Rfd1 {[%emt
00:00:05] [%clk 00:01:14]} Na5 {[%emt 00:00:06] [%clk 00:01:26]} 17. Ba2 {[%emt
00:00:08] [%clk 00:01:08]} Qc7 {[%emt 00:00:06] [%clk 00:01:21]} 18. Rbc1 {[%emt
00:00:18] [%clk 00:00:52]} Qf4 {[%emt 00:00:01] [%clk 00:01:22]} 19. d5 {[%emt
00:00:05] [%clk 00:00:49]} exd5 {[%emt 00:00:09] [%clk 00:01:15]} 20. exd5
{[%emt 00:00:02] [%clk 00:00:49]} Bd6 {[%emt 00:00:09] [%clk 00:01:08]} 21. Rxc8
{[%emt 00:00:15] [%clk 00:00:36]} Rxc8 {[%emt 00:00:09] [%clk 00:01:02]} 22. Be5
{[%emt 00:00:04] [%clk 00:00:33]} Qh6 {[%emt 00:00:26] [%clk 00:00:38]} 23. Bxd6
{[%emt 00:00:14] [%clk 00:00:21]} Qxd6 {[%emt 00:00:02] [%clk 00:00:38]} 24. Qd3
{[%emt 00:00:04] [%clk 00:00:19]} h6 {[%emt 00:00:06] [%clk 00:00:34]} 25. h4
{[%emt 00:00:02] [%clk 00:00:19]} Rd8 {[%emt 00:00:10] [%clk 00:00:26]} 26. h5
{[%emt 00:00:02] [%clk 00:00:19]} a6 {[%emt 00:00:11] [%clk 00:00:18]} 27. Bb1
{[%emt 00:00:02] [%clk 00:00:18]} Bxd5 {[%emt 00:00:09] [%clk 00:00:11]} 28.
Qh7+ {[%emt 00:00:02] [%clk 00:00:17]} Kf8 {[%clk 00:00:13]} 29. Ba2 {[%emt
00:00:13] [%clk 00:00:08]} Be4 {[%emt 00:00:10] [%clk 00:00:04]} 30. Rxd6 {[%emt
00:00:03] [%clk 00:00:07]} 1-0

[Site "Europe Echecs"]